Cogmind - Beta 9.2 @@@ ROGUE MODE // 2019.11.15 @ 11:11:52 Player: Noxul Result: Self-destructed Performance ------------- Evolutions (1) 500 Regions Visited (3) 600 Robots Destroyed (39) 195 Value Destroyed (1265) 1265 Prototype IDs (3) 60 Alien Tech Used (0) 0 Bonus (83) 83 TOTAL SCORE: 2703 Bonus ------- High Alert Combat Kills 83 Cogmind --------- Core Integrity 278/400 Matter 300/300 Energy 213/280 System Corruption 0% Temperature Cool (450) Movement Treading (160) Location -9/Storage Parts ------- > --- POWER (1) -------- Heavy Ion Engine > --- PROPULSION (2) --- Light Treads > --- UTILITY (3) ------ Heat Sink Small Storage Unit Improved Targeting Computer > --- WEAPON (3) ------- Improved EM Shotgun Compact Ion Cannon > --- INVENTORY (6) ---- Light Armor Plating Advanced Beam Cannon Advanced Beam Cannon Advanced Beam Cannon Heavy Assault Rifle Improved Assault Rifle Peak State ------------ > --- POWER ------------ Heavy Ion Engine > --- PROPULSION ------- Light Treads Light Treads > --- UTILITY ---------- Cooling System Small Storage Unit Improved Targeting Computer > --- WEAPON ----------- Improved EM Shotgun Compact Ion Cannon Heavy Assault Rifle > --- INVENTORY -------- Light Ion Engine Heat Sink Improved EM Shotgun Spread Laser Improved Assault Rifle [Rating: 22] Favorites ----------- Power Light Ion Engine Engine Light Ion Engine Propulsion Light Treads Treads Light Treads Leg Aluminum Leg Utility Small Storage Unit Device Cooling System Storage Small Storage Unit Processor Targeting Computer Protection Light Armor Plating Weapon Compact Ion Cannon Energy Gun Improved EM Shotgun Energy Cannon Compact Ion Cannon Ballistic Gun Shotgun Special Weapon Mining Laser Build | -11 -10 -9 -9 ------- Run | Scr Mat Mat Sto Slots Evolved 2 | . . 2 . Power . | . . . . Propulsion . | . . . . Utility 1 | . . 1 . Weapon 1 | . . 1 . Parts Attached 33 | 6 4 6 17 Power 3 | 1 1 . 1 Engine 3 | 1 1 . 1 Core . | . . . . Reactor . | . . . . Propulsion 11 | 2 . 1 8 Treads 8 | . . . 8 Leg 3 | 2 . 1 . Wheel . | . . . . Hover . | . . . . Flight . | . . . . Utility 7 | 1 1 2 3 Device 2 | . . 1 1 Storage 1 | 1 . . . Processor 2 | . 1 . 1 Hackware . | . . . . Protection 2 | . . 1 1 Artifact . | . . . . Weapon 12 | 2 2 3 5 Energy Gun 8 | 2 1 2 3 Energy Cannon 1 | . . . 1 Ballistic Gun 2 | . . 1 1 Ballistic Cannon . | . . . . Launcher . | . . . . Special Weapon 1 | . 1 . . Impact Weapon . | . . . . Slashing Weapon . | . . . . Piercing Weapon . | . . . . Special Melee Weapon . | . . . . Unidentified Prototypes 3 | . . . 3 Parts Lost 6 | . 1 . 5 Power . | . . . . Propulsion 1 | . . . 1 Utility 2 | . . . 2 Weapon 3 | . 1 . 2 Highest Loss Streak 2 | . 1 . 2 Average Slot Usage (%) 98 | . 95 96 99 Engine 11 | . 14 11 11 Treads 12 | . . . 19 Leg 10 | . 28 22 1 Device 7 | . . 7 10 Storage 11 | . 14 11 11 Processor 4 | . 11 3 1 Protection 6 | . . 11 9 Energy Gun 16 | . 24 18 12 Energy Cannon 6 | . . . 10 Ballistic Gun 6 | . . 5 9 Special Weapon 1 | . 2 5 . Naked Turns . | . . . . Heaviest Build 27 | 11 11 20 27 Greatest Support 40 | 20 20 23 40 Greatest Overweight (x) . | . . . . Average Overweight (x) . | . . . . Largest Inventory Capacity 6 | 6 6 6 6 Average Capacity 5 | 5 6 6 6 Most Carried 6 | 4 3 3 6 Average Carried 3 | 1 2 1 5 Final Capacity 6 | 6 6 6 6 Final Carried 6 | 2 3 2 6 Class Distribution -------------------- 39% | Tank 35% | Mutant 15% | Scavenger-Tank 6% | Gunner 4% | Scavenger-Gunner Dominant Class ---------------- Mutant | -10/Materials Tank | -9/Materials Tank | -9/Storage Resources | -11 -10 -9 -9 ----------- Run | Scr Mat Mat Sto Matter Collected 698 | 127 158 58 355 Remotely . | . . . . Salvage Created 1516 | . 149 58 1309 Parts 94 | . 9 2 83 Haulers Intercepted 2 | . . . 2 Recyclers Shooed . | . . . . Parts Field Recycled . | . . . . Retrieved Matter . | . . . . Parts Self-Destructed . | . . . . Prevented . | . . . . Kills | -11 -10 -9 -9 ------- Run | Scr Mat Mat Sto Combat Hostiles Destroyed 34 | . 6 1 27 Guns 21 | . 6 1 14 Cannons 11 | . . . 11 AOE 2 | . . . 2 Classes Destroyed 8 | . 2 1 5 Worker 2 | . . . 2 Hauler 2 | . . . 2 Watcher 1 | . . . 1 Swarmer 9 | . 4 . 5 Grunt 12 | . 2 . 10 Brawler 2 | . . . 2 Duelist 1 | . . . 1 Sentry 10 | . . 1 9 Best Kill Streak 9 | . 3 1 9 Combat Bots Only 8 | . 3 1 8 Max Kills in Single Turn 2 | . 1 1 2 Gunslinging . | . . . . Exploded 1 | . . . 1 Melee . | . . . . Uniques/NPCs Destroyed . | . . . . Combat | -11 -10 -9 -9 -------- Run | Scr Mat Mat Sto Damage Taken 1644 | . 243 58 1343 Core 177 | . 55 14 108 Absorbed by Shields . | . . . . Core Remaining (%) 89 | 100 78 . . Volleys Fired 76 | . 15 4 57 Largest 3 | . 2 3 3 Hottest 180 | . 100 119 180 Shots Fired 194 | . 24 9 161 Gun 137 | . 24 9 104 Cannon 57 | . . . 57 Launcher . | . . . . Special . | . . . . Kinetic 54 | . . 4 50 Thermal 85 | . 22 1 62 Explosive . | . . . . Electromagnetic 55 | . 2 4 49 Robot Hit Streak 15 | . 7 7 15 Robot Miss Streak 5 | . 1 . 5 Penetration Max . | . . . . Secondary Targets . | . . . . Shots Hit Robots 132 | . 16 5 111 Core Hits 76 | . 10 2 64 Critical Hits 3 | . . . 3 Critical Kills 1 | . . . 1 Critical Parts Destroyed 2 | . . . 2 Melee Attacks . | . . . . Impact . | . . . . Slashing . | . . . . Piercing . | . . . . Sneak Attacks . | . . . . Combat Hostiles . | . . . . Follow-up Attacks . | . . . . Damage Inflicted 2572 | . 201 74 2297 Guns 1461 | . 201 74 1186 Cannons 887 | . . . 887 Explosions 224 | . . . 224 Melee . | . . . . Ramming . | . . . . Kinetic 448 | . . 41 407 Thermal 1370 | . 201 . 1169 Explosive . | . . . . Electromagnetic 754 | . . 33 721 Impact . | . . . . Slashing . | . . . . Piercing . | . . . . Highest Corruption . | . . . . Average Corruption . | . . . . Corruption Purged . | . . . . Overload Shots . | . . . . Overflow Damage 18 | . . . 18 Projectiles 9 | . . . 9 Explosions 9 | . . . 9 Melee . | . . . . Knockbacks . | . . . . Impact . | . . . . Kinetic . | . . . . Secondary . | . . . . Self-Inflicted Damage 122 | . 41 . 81 Shots 3 | . 1 . 2 Rammed . | . . . . Targets Rammed . | . . . . Kicked . | . . . . Crushed . | . . . . Highest Temperature 435 | . 222 . 435 Average Temperature 100 | . 102 . 100 Received Heat Transfer 534 | . 87 18 429 Effects 2 | . . . 2 Interference 2 | . . . 2 Siege Activations . | . . . . Robots Corrupted . | . . . . Combat Hostiles . | . . . . Parts Fried 1 | . . . 1 Impact Corruptions . | . . . . Robots Melted . | . . . . Combat Hostiles . | . . . . Parts Melted 2 | . 1 . 1 Heat Transferred 2147 | . 592 . 1555 Parts Sabotaged . | . . . . Parts Stolen . | . . . . Parts Stripped . | . . . . Power Chain Reactions 3 | . . . 3 Missiles Intercepted . | . . . . Alert | -11 -10 -9 -9 ------- Run | Scr Mat Mat Sto Peak Influence 752 | . 218 136 752 Average Influence 201 | . 130 104 259 Maximum Alert Level 3 | . 1 . 3 Low Security (%) 62 | 100 64 100 53 Level 1 23 | . 35 . 23 Level 2 13 | . . . 22 Level 3 . | . . . . Level 4 . | . . . . Level 5 . | . . . . High Security . | . . . . Max Security . | . . . . Squads Dispatched 8 | . 2 . 6 Investigation 1 | . 1 . . Extermination . | . . . . Reinforcement 3 | . 1 . 2 Assault 3 | . . . 3 Garrison 1 | . . . 1 Intercept . | . . . . Construction Impeded . | . . . . Haulers Reinforced . | . . . . Stealth | -11 -10 -9 -9 --------- Run | Scr Mat Mat Sto Distress Signals 2 | . 1 . 1 Communications Jammed . | . . . . Distress Signals . | . . . . Times Spotted 60 | . 15 1 44 Peak Tracking Total 9 | . 5 1 9 Tactical Retreats 4 | . . . 4 Traps | -11 -10 -9 -9 ------- Run | Scr Mat Mat Sto Traps Triggered 1 | . 1 . . Indirectly . | . . . . Trap Hack Attempts . | . . . . Triggered . | . . . . Disarmed . | . . . . Reprogrammed . | . . . . Reused . | . . . . Traps Extracted . | . . . . Installed . | . . . . Triggered . | . . . . Machines | -11 -10 -9 -9 ---------- Run | Scr Mat Mat Sto Machines Disabled 6 | . 2 . 4 Max in Single Turn 2 | . 2 . 2 Garrison Access 1 | . . . 1 Machines Sabotaged . | . . . . Garrisons Compromised . | . . . . Overloaded Fab Kills . | . . . . Fab Network Shutdowns . | . . . . Hacking | -11 -10 -9 -9 --------- Run | Scr Mat Mat Sto Machines Accessed 10 | . 3 . 7 Terminals 10 | . 3 . 7 Fabricators . | . . . . Repair Stations . | . . . . Recycling Units . | . . . . Scanalyzers . | . . . . Garrison Access . | . . . . Total Hacks 18 | . 5 . 13 Successful 9 | . 4 . 5 Failed 9 | . 1 . 8 Catastrophic . | . . . . Database Lockouts . | . . . . Manual 10 | . 4 . 6 Terminals 18 | . 5 . 13 Fabricators . | . . . . Repair Stations . | . . . . Recycling Units . | . . . . Scanalyzers . | . . . . Garrison Access . | . . . . Terminal Hacks 3 | . 1 . 2 Open Door 1 | . . . 1 Locate Traps 2 | . 1 . 1 Fabricator Hacks . | . . . . Repair Station Hacks . | . . . . Recycling Unit Hacks . | . . . . Scanalyzer . | . . . . Garrison Access Hacks . | . . . . Unauthorized Hacks 16 | . 7 . 9 Terminals 6 | . 3 . 3 Track 2 | . . . 2 Assimilate 2 | . 1 . 1 Botnet 2 | . 2 . . Fabricators . | . . . . Repair Stations . | . . . . Recycling Units . | . . . . Scanalyzers . | . . . . Garrison Access . | . . . . Data Cores Recovered . | . . . . Used . | . . . . Hacking Detections 6 | . 1 . 5 Full Trace Events . | . . . . Feedback Events . | . . . . Feedback Blocked . | . . . . Robot Schematics Acquired . | . . . . Robots Built . | . . . . Matter . | . . . . Time . | . . . . Total Robot Build Rating . | . . . . Part Schematics Acquired . | . . . . Parts Built . | . . . . Matter . | . . . . Time . | . . . . Total Part Build Rating . | . . . . Parts Repaired . | . . . . Time . | . . . . Parts Recycled . | . . . . Recycled Matter . | . . . . Retrieved Matter . | . . . . Retrieved Components . | . . . . Parts Scanalyzed . | . . . . Part Schematics Acquired . | . . . . Parts Damaged . | . . . . Bothacking | -11 -10 -9 -9 ------------ Run | Scr Mat Mat Sto Used RIF Installer . | . . . . Robots Hacked . | . . . . Non-combat . | . . . . Combat . | . . . . Robot Hacks Applied . | . . . . Relay Couplers Released 1 | . . . 1 Machine Destruction 1 | . . . 1 Robots Rewired . | . . . . Allies Hacked . | . . . . Hacks Repelled . | . . . . Allies | -11 -10 -9 -9 -------- Run | Scr Mat Mat Sto Total Allies 3 | . 1 . 2 Largest Group 2 | . 1 . 2 Highest-Rated Group 62 | . 10 . 62 Highest-Rated Ally 31 | . 10 . 31 Total Orders . | . . . . Ally Attacks 6 | . . . 6 Total Damage 84 | . . . 84 Kills . | . . . . Allies Corrupted . | . . . . Allies Melted . | . . . . Intel | -11 -10 -9 -9 ------- Run | Scr Mat Mat Sto Robot Analysis Total . | . . . . Derelict Logs Recovered . | . . . . Drone Launches . | . . . . Drone Recoveries . | . . . . Exploration | -11 -10 -9 -9 ------------- Run | Scr Mat Mat Sto Turns Passed 1555 | 62 393 156 944 Spaces Moved 780 | 51 237 97 395 Core 16 | 16 . . . Treads 350 | . . . 350 Legs 414 | 35 237 97 45 Wheels . | . . . . Hover . | . . . . Flight . | . . . . Fastest Speed 50 | 50 120 120 120 Average Speed 136 | 98 120 120 155 Slowest Speed 160 | 120 120 120 160 Overloaded Moves . | . . . . Propulsion Burnouts . | . . . . Robots Hopped . | . . . . Cave-ins Triggered . | . . . . Exploration Rate (%) 27 | 3 49 8 48 Regions Visited 3 Branch Regions 1 Pre-discovered Areas . | . . . . Known Exits Taken . | . . . . Unknown Exits Taken 3 | 1 1 1 . Scrap Searched . | . . . . Spaces Dug . | . . . . Terrain Destroyed 64 | . 29 . 35 Melee . | . . . . Projectile 18 | . . . 18 AOE 46 | . 29 . 17 Actions | -11 -10 -9 -9 --------- Run | Scr Mat Mat Sto Total 1117 | 62 321 128 606 Wait 176 | . 61 14 101 Move 777 | 50 236 96 395 Hop . | . . . . Pick Up 34 | 6 4 5 19 Fast Attach 2 | 2 . . . Attach 15 | 4 2 3 6 Detach 1 | . . . 1 Swap 16 | . 2 3 11 Drop 20 | . 1 3 16 Fire 76 | . 15 4 57 Melee . | . . . . Ram . | . . . . Kick . | . . . . Crush . | . . . . Escape Stasis . | . . . . Rewire . | . . . . Trap . | . . . . Miscellaneous . | . . . . Route ------- -11/Scrapyard -10/Materials -9/Materials -9/Storage History --------- Turn | Location | Event 4 | -11/Scrapyard | Discovered new exit (range 16) 63 | -11/Scrapyard | Entered Materials 312 | -10/Materials | Build established: Mutant 444 | -10/Materials | Discovered new exit (range 11) 456 | -10/Materials | Entered another Materials area 456 | -9/Materials | Evolved 2 slots: Utility x1, Weapon x1 548 | -9/Materials | Discovered new exit (range 14) 612 | -9/Materials | Entered Storage 883 | -9/Storage | Build established: Tank 1310 | -9/Storage | Garrison activated, responded to threat 1374 | -9/Storage | Destroyed 8 combat bots 1506 | -9/Storage | Met a pair of Derelict thieves 1556 | -9/Storage | Self-destructed Last Messages --------------- 01515_ Acquired Prototype Energy Cannon. 01516_ ALERT: Breach in storage area. Dispatching assault force. 01516_ 33-IVB(g): "So much for stealth, let's take what we have and get out of here before it's too late." 01518_ Acquired Prototype Energy Cannon. 01534_ C-30 ARC bursts open, deploying its payload. 01534_ G-47 Trooper unfolds itself. 01534_ L-31 Rogue unfolds itself. 01534_ G-34 Mercenary unfolds itself. 01534_ M-13 Machinist unfolds itself. 01534_ C-30 ARC bursts open, deploying its payload. 01534_ G-47 Trooper unfolds itself. 01534_ G-34 Mercenary unfolds itself. 01534_ I-25 Savior unfolds itself. 01538_ 33-IVB(g) destroyed. 01542_ WJ-C5K(g) destroyed. 01543_ Destroyed Sml. Laser. 01547_ G-34 Mercenary destroyed. 01550_ Imp. EM Shotgun destroyed. 01554_ Lgt. Treads destroyed. Map ----- +----------------------------------------------------+ | ???????????????????????????????????????? | | ???????????????????????????????????????? | | ???????????????????????????????????????? | | ???????????????????????????????????????? | | ???????????????????????????????????????? | | ???????????????????????????????????????? | | ???????????????????????????????????????? | | ???????????????????????????????????????? | | ???????????????????????????????????????? | | ???????????????????????????????????????? | | ???????????????????????????????????????? | | ????? ???????????????????????????????? | | ????# ???????????????????????????????? | | ????# ???????????????????????????????? | | ????# ???????????????????????????????? | | ????# #??????????t???????????????????? | | ????# #????????????m?????????????????? | | ????# #??????????????????????????????? | | ????# #????????????a?????????????????? | | ????# +??????????????????????????????? | | ????# #??????????????????????????????? | | ????# #??????????????????????????????? | | ????# #???######?????????????????????? | | ???## ##### #?????????????????????? | | ???# ##T#[] #?????????????????????? | | ???# "%# g" l@ #?????????????????????? | | ???# T "+%*gggg[#?????????????????????? | | ???# / #*%"= mi#?????????????????????? | | ???#* # # [[#?????????????????????? | | ???#/!"###########?????????????????????? | | ???#*%##???????????????????????????????? | | ???#=g!#???????????????????????????????? | | ???#% %#???????????????????????????????? | | ???#"!*#???????#####???????????????????? | | ???## !#?#######"""###?????????????????? | | ????# #### ##"R"#"#?????????????????? | | ????#a / ##" "#[#?????????????????? | | ????# # # !*##????????????????? | | ????# " # ""[%"#????????????????? | | ????# %/%* # !G"!T#????????????????? | | ????# ####% # ! #????????????????? | | ????# #??# =# % "#????????????????? | | ????# #??# " %!"#????????????????? | | ????# #??# = ### """##????????????????? | | ????# ########### #####??????????????? | | ????# +??????#???????? | | ????# #??????# ??????? | | ????############# ######## ###+??? | | ????????????????# ??? | | ????????????##### !! ??? | +----------------------------------------------------+ Best States ------------- Heat Dissipation 50 Energy Generation 14 Energy Capacity 280 Matter Stores 300 Matter Capacity 300 Sight Range 16 Terrain Scan Density 10 Armor Coverage 150 Evasion (%) 50 Targeting Accuracy 6 Recoil Reduction 2 Item Schematics ----------------- None Robot Schematics ------------------ None Fabricated ------------ Nothing Alien Tech Used ----------------- None Achievements -------------- None Challenges ------------ None Game ------ Seed RagnarokCouplerAmplifier Manual? 0 Play Time 00:24:12 Cumulative 8.0 hours Start 2019.11.15 @ 10:42:10 End 2019.11.15 @ 11:11:52 Sessions 1 Manual Loads 0 Difficulty Rogue Special Mode None Game No. 18 Rogue 18 Adventurer 0 Explorer 0 Win Type - Total 0 Types 0/0/0/0/0/0/0 Lore% 9 Gallery% 16 Achievement% 13 Wizard Run 0 Options --------- ASCII 0 Keyboard 0 Movement Mouse Keybinds 0 Fullscreen 1 Font 18/Terminus Map View 76x50 Tactical HUD 1 Map Filters NONE Filters NONE Steam 1 RUN: 167c41a8-b11c-49d0-b40a-5ed5a92182a3